bitfinex-derivatives/quotes_ETHF0:USTF0_20250105
["timestamp","ask_amount","ask_price","bid_price","bid_amount"]
[1736065229977,3.2078,3613.8,3613.3,1.62529]
[1736065230173,3.22595056,3614.0,3613.9,0.27675]
[1736065230379,3.22595056,3614.1,3614.0,0.27674]
[1736065231973,0.27671,3614.4,3613.8,2.93875]
[1736065232171,0.27674,3614.0,3613.5,0.27677]
[1736065232774,0.27675,3613.9,3613.4,1.406]
[1736065232979,0.27674,3614.0,3613.4,1.406]
[1736065233174,6.78013999,3614.2,3613.4,3.48953663]
[1736065233379,0.27672,3614.2,3613.6,0.27677]
[1736065233881,0.27672,3614.2,3613.5,0.27678]
[1736065234180,3.2078,3614.3,3613.4,1.406]
[1736065234181,0.27675,3613.8,3613.4,1.406]
[1736065234679,0.27679,3613.4,3613.0,1.3221]
[1736065234986,0.27681,3613.1,3612.7,1.406]
[1736065236583,3.2078,3613.3,3612.9,0.27682]
[1736065236783,4.53655056,3613.6,3613.1,0.2768]
[1736065237079,4.81333056,3613.6,3613.0,0.27681]
[1736065237680,1.58738,3613.6,3613.0,0.27681]
[1736065238383,1.3106,3613.6,3612.9,1.3594]
[1736065238681,1.58737,3613.6,3613.0,0.27681]
[1736065239078,1.58737,3613.6,3612.8,2.36035663]
[1736065239079,0.27679,3613.3,3612.8,2.36035663]
[1736065239279,3.22595056,3613.9,3613.3,0.27679]
[1736065239483,0.27676,3613.8,3613.4,2.7685]
[1736065239686,0.27676,3613.8,3613.4,1.3139]
[1736065239877,0.27677,3613.7,3613.4,1.3139]
[1736065240077,3.22595056,3613.9,3613.4,1.3139]
[1736065240386,0.27675,3613.9,3613.4,1.59068]
[1736065240688,0.27674,3614.0,3613.5,0.27677]
[1736065240880,8.02858056,3614.2,3613.4,1.3139]
[1736065241082,0.27673,3614.1,3613.6,0.27677]
[1736065241691,3.22595056,3614.1,3613.8,2.08353663]
[1736065241881,3.22595056,3614.1,3614.0,0.27674]
[1736065242786,1.364,3614.4,3614.0,0.27674]
[1736065242992,1.364,3614.4,3613.9,4.5543]
[1736065243581,1.64071,3614.4,3613.9,1.62324]
[1736065244287,1.364,3614.4,3613.5,5.29133663]
[1736065244484,0.27673,3614.2,3613.6,0.27677]
[1736065244884,1.4305,3614.1,3613.7,0.27676]
[1736065245082,0.27675,3613.9,3613.5,3.2078]
[1736065245279,0.27675,3613.9,3613.4,1.59068]
[1736065246591,3.50269056,3614.0,3613.5,0.27678]
[1736065246783,3.22595056,3614.0,3613.4,1.3139]
[1736065246986,0.27676,3613.7,3613.3,0.27679]
[1736065247291,1.59297,3613.6,3613.1,3.4846]
[1736065247490,0.27678,3613.5,3613.1,3.4846]
[1736065247691,1.3162,3613.6,3613.1,3.2078]
[1736065247886,0.27676,3613.8,3613.3,0.27679]
[1736065248081,3.2078,3613.9,3613.2,3.48023663]
[1736065248481,3.22595056,3613.7,3613.2,3.48023663]
[1736065248682,3.22595056,3613.7,3613.6,0.27677]
[1736065249293,3.22595056,3613.7,3613.6,3.01917]
[1736065249691,3.50267056,3614.2,3613.7,0.27676]
[1736065249891,3.22595056,3614.2,3613.8,0.27675]
[1736065250290,3.22595056,3614.2,3613.6,2.7424]
[1736065250490,3.22595056,3614.2,3614.1,0.27673]
[1736065250993,7.87805056,3614.4,3614.1,0.27673]
[1736065251497,8.15476056,3614.4,3613.9,1.71904]
[1736065251692,8.15476056,3614.4,3614.0,0.27674]
[1736065251992,7.87805056,3614.4,3614.1,0.27673]
[1736065252198,3.2078,3614.4,3614.1,0.27673]
[1736065252389,3.50265056,3614.5,3614.0,0.27673]
[1736065253194,0.27671,3614.4,3614.0,0.27673]
[1736065253501,3.50265056,3614.5,3614.0,0.27673]
[1736065253803,3.22595056,3614.5,3613.6,2.7424]
[1736065254097,3.22595056,3614.5,3613.9,0.27674]
[1736065254098,0.27671,3614.4,3613.9,0.27674]
[1736065254292,3.22595056,3614.5,3613.9,0.27674]
[1736065254499,0.27672,3614.3,3613.9,0.27674]
[1736065254698,0.27672,3614.3,3613.8,0.27675]
[1736065255000,3.50266056,3614.4,3613.9,0.27674]
[1736065255297,3.22595056,3614.4,3614.0,0.27674]
[1736065255500,0.27672,3614.3,3613.6,2.7424]
[1736065255688,3.50266056,3614.4,3613.9,0.27674]
[1736065255889,0.27672,3614.3,3613.8,0.27675]
[1736065256094,3.50266056,3614.4,3613.9,0.27674]
[1736065256295,3.22595056,3614.4,3614.2,0.27672]
[1736065256701,3.22595056,3614.4,3614.3,1.3257]
[1736065256905,3.22595056,3614.4,3614.3,1.60242]
[1736065257806,3.22595056,3614.7,3614.3,1.60242]
[1736065258006,3.22595056,3614.7,3614.4,0.2767]
[1736065258302,3.22595056,3614.7,3614.4,1.4114]
[1736065258503,3.22595056,3614.7,3614.4,1.6881]
[1736065258898,3.50262056,3614.9,3614.4,1.6881]
[1736065259104,3.50262056,3614.9,3614.5,0.2767]
[1736065259401,6.97650597,3614.8,3614.5,0.2767]
[1736065259602,3.22595056,3614.9,3614.6,0.27669]
[1736065259804,3.22595056,3614.9,3614.4,3.49493663]
[1736065260200,3.22595056,3614.9,3614.7,0.27668]
[1736065260399,3.22595056,3615.0,3614.7,0.27668]
[1736065260596,3.22595056,3615.0,3614.6,0.27669]
[1736065261000,3.22595056,3615.0,3614.4,3.49493663]
[1736065261203,0.27667,3614.9,3614.4,3.77163663]
[1736065261405,0.27667,3614.9,3614.4,1.4114]
[1736065261705,3.22595056,3615.0,3614.4,1.4114]
[1736065261907,6.43375056,3615.1,3614.4,1.4114]
[1736065262103,1.4104,3615.0,3614.3,5.6665]
[1736065262306,8.34629853,3614.9,3614.3,4.5335]
[1736065262604,0.27671,3614.4,3614.1,1.3715]
[1736065263103,3.2078,3614.7,3614.1,1.3715]
[1736065263409,0.27672,3614.2,3614.1,1.3715]
[1736065265604,0.27672,3614.2,3613.8,2.36028663]
[1736065265808,3.22595056,3614.4,3613.8,2.08353663]
[1736065266008,0.27672,3614.3,3613.9,2.98364]
[1736065266210,3.22595056,3614.4,3614.0,0.27673]
[1736065266405,3.22595056,3614.3,3614.0,0.27673]
[1736065266610,3.22595056,3614.3,3614.1,0.27673]
[1736065266810,3.22595056,3614.3,3614.2,0.27672]
[1736065267909,3.50265056,3614.5,3614.1,2.36025663]
[1736065268308,3.22595056,3614.5,3614.1,2.08353663]
[1736065268509,3.22595056,3614.5,3614.2,0.27672]
[1736065269817,3.22595056,3614.5,3614.1,2.08353663]
[1736065269818,3.22595056,3614.5,3614.3,0.27671]
[1736065270018,3.22595056,3614.5,3614.4,1.3336]
[1736065270513,3.22595056,3614.6,3614.4,1.3336]
[1736065270906,3.22595056,3614.6,3614.5,1.3835]
[1736065271818,3.50264056,3614.7,3614.5,1.3835]
[1736065273128,0.27669,3614.6,3614.5,1.3835]
[1736065274322,3.91784835,3614.6,3614.5,1.3835]
[1736065274827,3.64115835,3614.6,3614.5,1.3835]
[1736065275527,3.91784835,3614.6,3614.5,1.3835]
[1736065275723,3.64115835,3614.6,3614.5,1.3835]
[1736065276327,3.64115835,3614.6,3614.5,1.6602]
[1736065277235,2.14722337,3614.6,3614.5,1.3835]
[1736065278630,2.14722337,3614.6,3614.5,1.6602]
[1736065280325,2.42390337,3614.8,3614.5,1.3835]
[1736065280519,2.42390337,3614.8,3614.6,1.3612]
[1736065280930,0.27668,3614.7,3614.6,1.3612]
[1736065281931,0.27668,3614.7,3614.4,6.62493663]
[1736065281932,0.2767,3614.6,3614.4,1.3336]
[1736065282631,0.2767,3614.5,3614.4,1.3336]
[1736065283033,2.14722337,3614.5,3614.4,1.3336]
[1736065283431,2.42392337,3614.5,3614.4,1.3336]
[1736065284132,6.82588414,3620.0,3614.4,1.3336]
[1736065284133,3.50265056,3614.6,3614.4,1.3336]
[1736065284535,3.22595056,3614.6,3614.4,1.3336]
[1736065284733,3.50264056,3614.6,3614.5,1.4894]
[1736065285032,0.2767,3614.5,3614.4,1.3336]
[1736065285423,3.50265056,3614.6,3614.4,1.3336]
[1736065285628,0.2767,3614.6,3614.4,1.3336]
[1736065286531,3.22595056,3614.6,3614.4,1.3336]
[1736065286737,0.2767,3614.5,3614.4,1.3336]
[1736065287835,3.64116608,3614.5,3614.4,1.3336]
[1736065289136,3.22595056,3614.5,3614.4,1.3336]
[1736065290133,2.14828331,3614.5,3614.4,1.61031]
[1736065291437,2.14828331,3614.5,3614.4,1.3336]
[1736065292541,2.42498331,3614.5,3614.4,1.3336]
[1736065292840,0.27672,3614.3,3614.2,1.4894]
[1736065293041,3.22595056,3614.5,3614.0,1.4406]
[1736065293338,0.27673,3614.1,3614.0,1.4406]
[1736065295034,0.69199518,3614.1,3614.0,1.4406]
[1736065295735,0.41526518,3614.1,3614.0,1.4406]
[1736065296134,0.41526518,3614.1,3614.0,1.71734]
[1736065296343,4.71600503,3614.1,3614.0,1.71734]
[1736065296641,4.71600503,3614.1,3614.0,4.92514]
[1736065297543,2.15043049,3614.2,3614.1,0.27673]
[1736065297745,2.15043049,3614.2,3614.1,2.36026663]
[1736065299139,2.15043049,3614.3,3614.2,0.27672]
[1736065303338,2.15043049,3614.7,3614.2,6.50004549]
[1736065303543,2.15043049,3614.7,3614.6,2.36022663]
[1736065304244,2.15043049,3614.7,3614.6,5.25572663]
[1736065305243,3.22564574,3614.8,3614.7,0.27668]
[1736065305444,3.22564574,3614.8,3614.6,5.25572663]
[1736065307044,3.22564574,3614.8,3614.5,1.12]
[1736065307244,3.50232574,3614.8,3614.5,1.12]
[1736065307653,0.27669,3614.7,3614.4,3.2078]
[1736065307955,2.14995979,3614.6,3614.4,1.111]
[1736065309455,3.22564574,3614.5,3614.4,1.111]
[1736065309756,3.22564574,3614.5,3614.4,1.38771]
[1736065310754,3.22564574,3614.6,3614.4,1.38771]
[1736065312951,3.22564574,3614.6,3614.5,0.2767]
[1736065313153,3.22564574,3614.6,3614.4,1.111]
[1736065313355,3.22564574,3614.6,3614.4,0.2767]
[1736065313751,3.22564574,3614.5,3614.4,0.2767]
[1736065321257,3.22564574,3614.5,3614.4,3.4845]
[1736065322959,3.22564574,3614.6,3614.5,0.2767]
[1736065323166,3.22564574,3614.6,3614.5,2.36023663]
[1736065325464,2.15076875,3614.7,3614.6,0.27669]
[1736065327163,2.15076875,3614.7,3614.6,2.36022663]
[1736065327558,2.15076875,3614.8,3614.7,0.27668]
[1736065328255,2.15076875,3614.8,3614.7,1.73318]
[1736065335169,2.15076875,3614.8,3614.7,1.4565]
[1736065335365,2.15076875,3614.8,3614.7,2.5555]
[1736065335560,2.15076875,3614.8,3614.7,2.83218]
[1736065336167,3.22564574,3614.8,3614.7,2.83218]
[1736065337458,0.27665,3615.1,3614.7,2.83218]
[1736065337459,3.22564574,3614.9,3614.7,2.83218]
[1736065337666,3.22564574,3614.9,3614.7,2.5555]
[1736065337964,3.22564574,3614.9,3614.8,0.27668]
[1736065338367,3.22564574,3614.9,3614.7,2.83218]
[1736065338567,2.14886992,3614.8,3614.7,2.83218]
[1736065339268,2.14886992,3614.8,3614.7,4.91571663]
[1736065340374,2.14886992,3614.8,3614.7,3.84227138]
[1736065340674,5.33060749,3615.4,3614.7,3.84227138]
[1736065340675,2.14886992,3615.3,3615.2,0.27665]
[1736065340868,2.14886992,3615.3,3615.2,3.48445]
[1736065341070,2.14886992,3615.3,3615.2,4.49454138]
[1736065341570,2.14886992,3615.4,3615.3,0.27664]
[1736065341767,2.14886992,3615.4,3615.3,1.77434]
[1736065342476,2.14886992,3615.4,3615.3,3.86331963]
[1736065343185,2.14886992,3615.5,3615.4,0.27663]
[1736065343479,2.14886992,3615.5,3615.4,1.37563]
[1736065344676,2.14886992,3615.6,3615.5,0.27662]
[1736065344975,2.14886992,3615.6,3615.5,2.36559963]
[1736065345776,2.14886992,3615.7,3615.6,0.27662]
[1736065348084,2.14886992,3615.8,3615.7,0.27661]
[1736065349679,2.14886992,3615.8,3615.6,0.27661]
[1736065349881,2.14886992,3615.8,3615.7,0.27661]
[1736065350185,2.14886992,3615.8,3615.6,0.27661]
[1736065350478,2.14886992,3615.8,3615.7,0.27661]
[1736065352079,2.14886992,3615.9,3615.7,0.27661]
[1736065352383,2.14886992,3615.9,3615.8,0.2766]
[1736065352684,2.14886992,3615.9,3615.8,2.36557963]
[1736065353479,2.14886992,3616.0,3615.8,2.08897963]
[1736065353679,2.14886992,3616.0,3615.9,0.27659]
[1736065355779,2.14886992,3616.0,3615.9,1.74649]
[1736065356177,2.14886992,3616.1,3616.0,0.27659]
[1736065357587,2.14886992,3616.1,3616.0,3.48439]
[1736065359392,2.14886992,3616.7,3616.5,0.27654]
[1736065359587,2.14886992,3616.7,3616.5,1.099]
[1736065360493,2.14886992,3616.8,3616.5,1.37555]
[1736065361186,2.14886992,3616.8,3616.7,2.36550963]
[1736065361392,3.57766992,3616.9,3616.7,2.36550963]
[1736065361795,2.14886992,3616.9,3616.7,2.08897963]
[1736065362587,2.14886992,3616.9,3616.7,2.36550963]
[1736065362793,1.4871,3617.0,3616.7,2.36550963]
[1736065364395,1.4871,3617.0,3616.9,1.00941993]
[1736065365491,1.76361,3617.0,3616.9,1.00941993]
[1736065365896,4.97141,3617.0,3616.9,1.00941993]
[1736065366092,4.6949,3617.0,3616.5,1.099]
[1736065366396,3.2078,3616.6,3615.9,3.2078]
[1736065366594,3.2078,3616.6,3616.3,1.00941993]
[1736065366595,0.27655,3616.4,3616.3,1.00941993]
[1736065366985,1.69925,3616.4,3616.3,1.00941993]
[1736065368290,0.27657,3616.2,3615.9,3.2078]
[1736065369101,1.4227,3616.4,3615.9,3.2078]
[1736065369296,0.27656,3616.3,3615.9,3.48439]
[1736065369796,1.4227,3616.4,3615.9,3.2078]
[1736065369996,1.4227,3616.4,3616.0,0.27658]
[1736065370195,1.69926,3616.4,3615.9,3.48439]
[1736065370400,1.4227,3616.4,3615.9,3.48439]
[1736065370600,1.69926,3616.4,3615.9,3.48439]
[1736065371004,1.4227,3616.4,3615.9,3.2078]
[1736065371299,1.4464,3616.5,3616.2,0.27657]
[1736065371597,2.14886992,3616.6,3616.4,2.08865574]
[1736065371798,2.14886992,3616.6,3616.4,2.36520574]
[1736065372202,2.14886992,3616.6,3616.5,0.27655]
[1736065372994,3.22564574,3616.7,3616.5,0.27655]
[1736065373206,1.3854,3616.9,3616.5,0.27655]
[1736065373702,1.66192,3616.9,3616.5,0.27655]
[1736065374099,1.3854,3616.9,3616.5,0.27655]
[1736065374603,1.66192,3616.9,3616.5,0.27655]
[1736065375295,1.3854,3616.9,3616.6,3.09404]
[1736065375502,2.42536992,3617.1,3616.7,0.27653]
[1736065375698,2.42536992,3617.1,3616.8,1.4985]
[1736065375998,2.14886992,3617.1,3616.8,1.4985]
[1736065376302,2.14886992,3617.1,3616.8,1.77502]
[1736065376489,2.14886992,3617.1,3616.8,1.4985]
[1736065376693,3.66446992,3617.2,3617.0,0.27651]
[1736065376897,3.66446992,3617.2,3617.0,2.36516574]
[1736065377600,3.66446992,3617.2,3617.0,2.08865574]
[1736065378002,1.5156,3617.2,3616.8,1.4985]
[1736065378196,0.2765,3617.1,3616.8,1.4985]
[1736065378394,1.5156,3617.2,3616.8,1.4985]
[1736065378601,0.27651,3617.1,3616.8,1.4985]
[1736065381607,1.79209,3617.2,3616.8,1.77502]
[1736065381899,1.5156,3617.2,3616.8,1.4985]
[1736065382105,1.5156,3617.2,3616.9,0.27651]
[1736065382503,2.14886992,3617.3,3616.8,1.4985]
[1736065383007,2.14886992,3617.3,3617.1,0.2765]
[1736065383209,2.14886992,3617.3,3617.2,1.44]
[1736065383412,2.14886992,3617.3,3617.2,2.8974]
[1736065386603,2.14886992,3617.3,3616.8,1.4985]
[1736065386604,0.27651,3617.1,3616.8,1.4985]
[1736065387306,2.42535992,3617.3,3616.9,0.27652]
[1736065387501,0.27649,3617.2,3616.8,1.77502]
[1736065387700,0.27649,3617.2,3616.8,1.4985]
[1736065387905,0.2765,3617.1,3616.8,1.4985]
[1736065390504,2.42536992,3617.1,3616.8,1.4985]
[1736065392304,2.14886992,3617.1,3616.8,1.77502]
[1736065392905,2.42536992,3617.1,3616.8,1.4985]
[1736065393105,0.27651,3617.0,3616.8,1.4985]
[1736065393607,2.42537992,3617.1,3616.8,1.4985]
[1736065394310,2.42536992,3617.1,3617.0,1.00945707]
[1736065395112,2.14886992,3617.1,3616.8,1.00945707]
[1736065395310,1.65001,3617.0,3616.8,1.00945707]
[1736065395612,0.27652,3616.9,3616.8,1.00945707]
[1736065396417,1.65002,3617.0,3616.8,1.00945707]
[1736065396606,0.27652,3616.9,3616.8,1.00945707]
[1736065397216,5.60860281,3617.0,3616.5,1.3842]
[1736065397511,0.27654,3616.6,3616.4,4.21725707]
[1736065398107,0.27655,3616.5,3616.4,3.2078]
[1736065399209,1.66795,3616.5,3616.4,3.2078]
[1736065399407,0.2766,3615.9,3615.7,4.3387]
[1736065399604,3.2078,3616.2,3615.7,2.8365]
[1736065400208,0.27659,3616.0,3615.7,2.8365]
[1736065400608,3.2078,3616.2,3615.7,2.8365]
[1736065400808,3.2078,3616.2,3615.6,4.34833562]
[1736065400809,0.27661,3615.7,3615.6,4.34833562]
[1736065401009,3.2078,3616.2,3615.5,0.58715619]
[1736065401010,0.27662,3615.6,3615.5,0.58715619]
[1736065401413,2.8878,3615.8,3615.4,2.08855244]
[1736065401917,1.5119,3615.8,3615.4,2.36518244]
[1736065402118,3.22564574,3615.7,3615.4,2.36518244]
[1736065402509,3.22564574,3615.7,3615.6,0.27662]
[1736065403222,3.22564574,3616.1,3615.8,0.2766]
[1736065403519,3.22564574,3616.1,3616.0,2.08855244]
[1736065404015,3.22564574,3616.1,3615.9,3.17819]
[1736065404016,3.22564574,3616.1,3615.9,2.9016]
[1736065404610,2.14732163,3616.1,3615.9,2.9016]
[1736065405619,2.14732163,3616.1,3615.7,2.08855244]
[1736065405810,0.2766,3615.9,3615.7,2.08855244]
[1736065406118,2.14732163,3616.1,3615.7,2.08855244]
[1736065406119,0.27659,3616.0,3615.7,2.08855244]
[1736065406510,2.14732163,3616.1,3615.7,2.08855244]
[1736065406912,2.14732163,3615.9,3615.7,2.36516244]
[1736065408219,3.22564574,3616.0,3615.7,2.36516244]
[1736065408220,2.14732163,3616.0,3615.7,2.36516244]
[1736065408721,2.14732163,3616.0,3615.7,2.08855244]
[1736065409020,2.14732163,3616.0,3615.8,0.2766]
[1736065409221,2.14732163,3616.0,3615.7,2.08855244]
[1736065409421,2.14732163,3616.1,3615.9,0.27659]
[1736065409722,2.14732163,3616.1,3616.0,1.373]
[1736065411016,2.14732163,3616.2,3616.0,1.373]
[1736065411223,2.14732163,3616.2,3616.1,1.4644]
[1736065411427,2.14732163,3616.2,3616.1,2.8362]
[1736065411812,2.14732163,3616.2,3616.1,3.11278]
[1736065413115,2.14732163,3616.2,3616.1,4.20878]
[1736065413311,2.1466121,3616.6,3616.5,0.27655]
[1736065413523,2.1466121,3616.6,3616.5,2.36510244]
[1736065414620,3.22564574,3616.8,3616.7,0.27653]
[1736065414824,4.30073985,3617.0,3616.5,0.27654]
[1736065414825,4.57724985,3617.0,3616.5,0.27654]
[1736065415021,1.4252,3617.1,3616.6,1.4601]
[1736065415412,1.4252,3617.1,3616.7,1.74363]
[1736065416016,1.4252,3617.1,3616.7,1.4671]
[1736065416213,1.4252,3617.1,3616.8,0.27652]
[1736065416512,1.4252,3617.1,3616.8,1.4059]
[1736065416717,1.4252,3617.1,3616.8,1.68242]
[1736065416923,1.4252,3617.1,3616.8,1.4059]
[1736065417319,1.4252,3617.1,3616.9,0.27652]
[1736065418026,3.22564574,3617.2,3617.0,0.27651]
[1736065418321,3.22564574,3617.2,3616.9,0.27652]
[1736065418524,3.22564574,3617.2,3617.0,0.2765]
[1736065418719,4.6015,3617.5,3617.0,0.2765]
[1736065418720,3.22564574,3617.3,3617.0,0.2765]
[1736065419023,3.22564574,3617.3,3617.2,0.27649]
[1736065420230,1.3937,3617.5,3617.2,0.27649]
[1736065420428,1.3937,3617.5,3617.3,1.4353]
[1736065420623,1.3937,3617.5,3617.3,2.8638]
[1736065421425,4.61934574,3617.5,3617.3,2.8638]
[1736065421822,4.61934574,3617.5,3617.3,3.14028]
[1736065422726,1.3937,3617.5,3617.3,3.14028]
[1736065422925,1.3937,3617.5,3617.3,2.8638]
[1736065423827,4.61934574,3617.5,3617.3,2.8638]
[1736065424928,6.98679121,3617.4,3617.3,2.8638]
[1736065425326,4.61934574,3617.5,3617.3,2.8638]
[1736065427932,1.3937,3617.5,3617.3,2.8638]
[1736065428231,3.50211574,3617.6,3617.3,2.8638]
[1736065429629,0.27647,3617.5,3617.3,2.8638]
[1736065430935,3.50211574,3617.6,3617.3,2.8638]
[1736065433033,0.27648,3617.5,3617.3,2.8638]
[1736065433936,0.27648,3617.4,3617.3,2.8638]
[1736065434631,3.2078,3617.4,3616.6,5.29635244]
[1736065434830,3.2078,3617.4,3616.1,6.50004549]
[1736065434831,3.2078,3617.0,3616.4,4.2411]
[1736065435134,0.27653,3616.8,3616.4,4.51765]
[1736065435533,0.27654,3616.7,3616.4,2.8487]
[1736065435838,0.27654,3616.6,3616.4,2.8487]
[1736065436137,1.69213,3616.7,3616.4,2.8487]
[1736065436334,1.4156,3616.7,3616.4,2.8487]
[1736065436533,0.27654,3616.6,3616.4,2.8487]
[1736065438232,1.4156,3616.7,3616.2,2.08855244]
[1736065438541,0.27655,3616.5,3616.2,2.08855244]
[1736065439640,0.27654,3616.6,3616.2,2.08855244]
[1736065441735,1.69213,3616.7,3616.2,2.36512244]
[1736065441943,0.27654,3616.6,3616.2,2.36512244]
[1736065442641,1.4156,3616.7,3616.2,2.36512244]
[1736065442940,0.27654,3616.6,3616.2,5.29635244]
[1736065443443,1.4156,3616.7,3616.2,5.29635244]
[1736065443735,1.69213,3616.7,3616.2,5.57292244]
[1736065443939,4.65284574,3616.9,3616.5,2.08855244]
[1736065444237,1.70372,3616.9,3616.5,2.36509244]
[1736065444636,1.70372,3616.9,3616.5,0.27654]
[1736065445246,1.70372,3616.9,3616.2,5.29635244]
[1736065445247,1.4272,3616.9,3616.2,5.29635244]
[1736065445540,0.27653,3616.8,3616.4,0.27655]
[1736065446646,4.92936574,3616.9,3616.4,0.27655]
[1736065446844,4.65284574,3616.9,3616.4,0.27655]
[1736065447046,0.27653,3616.8,3616.4,0.27655]
[1736065447339,0.27653,3616.8,3616.2,5.29635244]
[1736065447538,0.27653,3616.8,3616.3,0.27656]
[1736065447742,0.27653,3616.8,3616.2,5.29635244]
[1736065447942,0.27654,3616.7,3616.3,0.27656]
[1736065449041,0.27655,3616.5,3616.2,2.08855244]
[1736065450950,1.69075,3616.6,3616.2,2.36512244]
[1736065451850,0.27655,3616.5,3616.2,2.08855244]
[1736065452143,1.4142,3616.6,3616.2,2.08855244]
[1736065452351,1.69074,3616.6,3616.2,2.36512244]
[1736065452544,1.4142,3616.6,3616.2,2.08855244]
[1736065452855,1.4142,3616.6,3616.3,0.27656]
[1736065453346,4.63984574,3616.6,3616.3,0.27656]
[1736065454446,1.4142,3616.6,3616.3,0.27656]
[1736065455549,1.4142,3616.6,3616.2,2.08855244]
[1736065455766,4.63984574,3616.6,3616.2,2.08855244]
[1736065455951,0.27655,3616.5,3616.2,2.08855244]
[1736065456150,0.27655,3616.5,3615.9,2.36514244]
[1736065456347,0.27657,3616.3,3616.0,1.4025]
[1736065457446,3.91720659,3616.4,3616.0,1.67908]
[1736065457751,3.64064659,3616.4,3616.3,0.27656]
[1736065457940,4.30073985,3616.5,3616.3,0.27656]
[1736065458345,4.30073985,3616.5,3616.4,1.4447]
[1736065459243,4.30073985,3616.5,3616.4,1.72125]
[1736065459448,3.22549308,3616.5,3616.4,1.72125]
[1736065459750,3.22549308,3616.5,3616.4,1.4447]
[1736065463050,3.50204308,3616.5,3616.4,1.4447]
[1736065463955,0.69153766,3616.5,3616.4,1.4447]
[1736065464461,0.41498766,3616.5,3616.4,1.4447]
[1736065464956,0.27654,3616.6,3616.4,1.4447]
[1736065465349,4.30073985,3616.7,3616.4,1.4447]
[1736065465551,4.30073985,3616.7,3616.4,1.72125]
[1736065465952,4.30073985,3616.7,3616.5,1.4123]
[1736065466153,4.30073985,3616.7,3616.6,1.405]
[1736065466354,4.30073985,3616.7,3616.6,1.68154]
[1736065466555,3.63952236,3616.7,3616.6,1.68154]
[1736065468260,3.2245347,3616.9,3616.6,1.405]
[1736065468463,3.2245347,3616.9,3616.8,2.36507244]
[1736065469652,3.2245347,3617.1,3616.8,2.08855244]
[1736065469858,3.2245347,3617.1,3617.0,0.27651]
[1736065470854,3.2245347,3617.1,3616.9,2.4887]
[1736065471257,3.5010247,3617.2,3616.9,2.4887]
[1736065471464,0.2765,3617.1,3616.9,2.4887]
[1736065471657,3.0893,3617.1,3616.9,2.4887]
[1736065473857,2.8128,3617.1,3616.9,2.4887]
[1736065474057,0.27651,3617.0,3616.9,2.4887]
[1736065474563,3.0893,3617.1,3616.9,2.4887]
[1736065475066,3.64112463,3617.0,3616.9,2.4887]
[1736065476159,3.64112463,3617.0,3616.9,2.76522]
[1736065477263,3.22618456,3617.0,3616.9,2.76522]
[1736065477467,3.22618456,3617.0,3616.9,2.4887]
[1736065477959,3.22618456,3617.0,3616.9,2.76522]
[1736065478359,3.22618456,3617.1,3616.9,2.4887]
[1736065478558,3.22618456,3617.1,3617.0,0.27651]
[1736065480072,3.22618456,3617.1,3616.9,2.76521]
[1736065480364,3.22618456,3617.1,3617.0,1.00932836]
[1736065480667,3.22618456,3617.1,3617.0,1.28583836]
[1736065481363,4.30073985,3617.2,3617.0,1.28583836]
[1736065481665,4.30073985,3617.2,3617.1,1.00932836]
[1736065482759,0.27649,3617.2,3617.1,1.00932836]
[1736065483268,4.71567992,3617.3,3616.9,3.49802836]
[1736065483470,0.2765,3617.1,3616.9,3.49802836]
[1736065484470,4.71567992,3617.2,3616.9,3.49802836]
[1736065484871,4.99217992,3617.2,3617.1,1.00932836]
[1736065485073,4.57723985,3617.2,3617.1,1.00932836]
[1736065485464,4.30073985,3617.2,3617.1,1.00932836]
[1736065485777,4.57722985,3617.2,3617.1,1.00932836]
[1736065485972,4.57722985,3617.2,3616.9,2.4887]
[1736065486270,0.69140713,3617.2,3617.1,1.00932836]
[1736065486469,0.69140713,3617.2,3617.0,1.00932836]
[1736065486871,0.41491713,3617.2,3617.0,1.00932836]
[1736065487071,0.41491713,3617.2,3617.1,0.2765]
[1736065487272,0.41491713,3617.2,3617.1,1.7609]
[1736065487473,4.30073985,3617.3,3617.1,1.4844]
[1736065487676,4.30073985,3617.3,3617.2,1.499]
[1736065488069,4.30073985,3617.3,3617.2,2.50832836]
[1736065488576,4.30073985,3617.3,3617.2,2.78481836]
[1736065488975,0.41490232,3617.3,3617.2,2.78481836]
[1736065490175,0.41490232,3617.3,3617.2,1.77549]
[1736065490377,6.43279725,3617.5,3617.3,0.27648]
[1736065490771,6.43279725,3617.5,3617.4,1.5019]
[1736065491176,4.30073985,3617.6,3617.4,1.77838]
[1736065491376,4.30073985,3617.6,3617.5,2.08698021]
[1736065491973,4.30073985,3617.6,3617.5,2.36345021]
[1736065492580,3.22421996,3617.6,3617.5,2.08698021]
[1736065492882,3.22421996,3617.6,3617.5,2.36345021]
[1736065493978,3.22421996,3617.7,3617.5,2.36345021]
[1736065494476,3.22421996,3617.7,3617.6,0.27646]
[1736065495285,3.22421996,3617.9,3617.5,2.08698021]
[1736065495482,3.22421996,3617.9,3617.8,0.27645]
[1736065496180,3.50065996,3617.9,3617.7,0.27645]
[1736065496482,3.50065996,3617.9,3617.8,1.4624]
[1736065497083,0.27644,3617.9,3617.8,1.4624]
[1736065497584,7.70844996,3618.0,3617.8,1.4624]
[1736065498182,0.27644,3617.9,3617.8,1.4624]
[1736065499183,4.48424,3618.0,3617.8,1.73884]
[1736065499581,4.48424,3618.0,3617.9,1.4834]
[1736065499783,4.2078,3618.0,3617.9,1.4834]
[1736065499978,4.2078,3618.0,3617.9,1.75984]
[1736065501088,4.2078,3618.0,3617.8,1.4624]
[1736065501281,0.27644,3617.9,3617.8,1.4624]
[1736065501489,4.2078,3618.0,3617.9,0.27644]
[1736065502991,4.2078,3618.0,3617.8,1.4624]
[1736065503284,4.48423,3618.0,3617.8,1.73884]
[1736065504093,4.2078,3618.0,3617.8,1.73884]
[1736065505084,4.2078,3618.0,3617.8,1.4624]
[1736065505289,4.2078,3618.0,3617.9,0.27644]
[1736065505583,4.48423,3618.0,3617.8,1.73884]
[1736065506177,4.2078,3618.0,3617.8,1.4624]
[1736065506489,4.48423,3618.0,3617.8,1.73884]
[1736065507090,4.48423,3618.0,3617.8,1.4624]